bitfinex/quotes_ETHUSD_20251021
["timestamp","ask_amount","ask_price","bid_price","bid_amount"]
[1761018611065,12.69408248,3939.8,3939.7,0.002]
[1761018611432,12.87031948,3939.8,3939.7,0.002]
[1761018611658,13.37719948,3939.8,3939.7,0.002]
[1761018612155,13.68310359,3939.8,3939.7,0.002]
[1761018612352,28.60384133,3939.7,3939.6,0.002]
[1761018612660,27.42221072,3939.7,3939.6,0.002]
[1761018612971,23.22037771,3939.7,3939.6,0.002]
[1761018613146,17.2754296,3939.7,3939.6,0.002]
[1761018613464,19.7153756,3939.7,3939.6,0.002]
[1761018614365,10.1784366,3939.7,3939.6,0.002]
[1761018614547,12.6904046,3939.7,3939.6,0.002]
[1761018615066,10.02422503,3939.7,3939.6,0.002]
[1761018615239,7.90869075,3939.7,3939.6,0.002]
[1761018615441,2.17042642,3939.7,3939.6,0.002]
[1761018615766,7.90869075,3939.7,3939.6,0.4312]
[1761018616462,7.90869075,3939.7,3939.6,0.002]
[1761018619470,7.90869075,3939.7,3939.6,0.4764]
[1761018619764,0.44242642,3939.7,3939.6,0.4764]
[1761018619969,6.18069075,3939.7,3939.6,0.4764]
[1761018620136,7.46626433,3939.7,3939.6,0.4764]
[1761018620534,4.928,3939.7,3939.6,0.4764]
[1761018621563,7.46626433,3939.7,3939.6,0.4764]
[1761018622835,4.97224041,3939.7,3939.6,0.4764]
[1761018623168,1.77224041,3939.7,3939.6,0.4764]
[1761018623380,0.04424041,3939.7,3939.6,0.002]
[1761018623532,0.001,3940.1,3939.6,0.4764]
[1761018623738,0.37107077,3939.7,3939.6,0.4764]
[1761018623938,0.04423645,3940.0,3939.6,0.4764]
[1761018624545,0.04423645,3940.0,3939.6,0.77808487]
[1761018624790,0.1264,3939.8,3939.6,0.4764]
[1761018624964,0.1264,3939.8,3939.7,3.01266433]
[1761018625469,0.1264,3939.8,3939.7,0.4744]
[1761018625669,0.1264,3939.8,3939.7,3.01266433]
[1761018626041,0.1274,3939.8,3939.7,3.01266433]
[1761018626236,0.001,3939.8,3939.7,3.56796915]
[1761018627270,0.001,3939.8,3939.7,3.59335179]
[1761018627469,0.001,3939.8,3939.7,3.56796915]
[1761018627973,0.001,3939.8,3939.7,3.59335179]
[1761018628138,0.001,3939.8,3939.7,3.56796915]
[1761018630498,0.001,3939.8,3939.7,0.4744]
[1761018630662,0.001,3939.8,3939.6,0.002]
[1761018631365,2.5392152,3939.8,3939.6,0.002]
[1761018631794,0.001,3939.8,3939.6,0.4715]
[1761018633103,2.53920768,3939.8,3939.6,0.4715]
[1761018633294,2.53920768,3939.8,3939.6,0.002]
[1761018633295,2.53826433,3939.7,3939.6,0.002]
[1761018633798,4.36756433,3939.7,3939.6,0.002]
[1761018633989,17.81246033,3939.7,3939.6,0.002]
[1761018634188,16.96018733,3939.7,3939.6,0.002]
[1761018634512,17.8381381,3939.7,3939.6,0.002]
[1761018634676,20.20059651,3939.7,3939.6,0.002]
[1761018634878,21.47219151,3939.7,3939.6,0.002]
[1761018635403,14.73512674,3939.7,3939.6,0.002]
[1761018635773,15.13329953,3939.7,3939.6,0.002]
[1761018635975,16.24953153,3939.7,3939.6,0.002]
[1761018637216,16.21693353,3939.7,3939.6,0.002]
[1761018637598,7.53377553,3939.7,3939.6,0.002]
[1761018637789,5.27261712,3939.7,3939.6,0.002]
[1761018638183,5.17131712,3939.7,3939.6,0.002]
[1761018638390,7.79973712,3939.7,3939.6,0.002]
[1761018638798,7.90103712,3939.7,3939.6,0.002]
[1761018639004,13.32927233,3939.7,3939.6,0.002]
[1761018640020,15.40517886,3939.7,3939.6,0.002]
[1761018641223,12.47065486,3939.7,3939.6,0.002]
[1761018642014,12.86882457,3939.7,3939.6,0.002]
[1761018642325,19.03612857,3939.7,3939.6,0.002]
[1761018642491,14.42971557,3939.7,3939.6,0.002]
[1761018642695,9.43263757,3939.7,3939.6,0.002]
[1761018642906,9.53393757,3939.7,3939.6,0.002]
[1761018643105,11.84955857,3939.7,3939.6,0.002]
[1761018643300,11.30578457,3939.7,3939.6,0.002]
[1761018643627,10.21733257,3939.7,3939.6,0.002]
[1761018643835,9.74260457,3939.7,3939.6,0.002]
[1761018644206,9.33207457,3939.7,3939.6,0.002]
[1761018644536,7.19536657,3939.7,3939.6,0.002]
[1761018644744,6.58718657,3939.7,3939.6,0.002]
[1761018644903,7.86843404,3939.7,3939.6,0.002]
[1761018645236,10.74797504,3939.7,3939.6,0.002]
[1761018647026,10.47619304,3939.7,3939.6,0.002]
[1761018647201,4.66543404,3939.7,3939.6,0.002]
[1761018647408,7.86743404,3939.7,3939.6,0.4715]
[1761018648732,7.86743404,3939.7,3939.6,0.002]
[1761018649634,4.66543404,3939.7,3939.6,0.002]
[1761018649815,7.86743404,3939.7,3939.6,0.002]
[1761018650134,8.91251527,3939.7,3939.6,0.002]
[1761018651604,2.12716971,3939.7,3939.6,0.002]
[1761018651808,2.12716971,3939.7,3939.6,0.4715]
[1761018651809,1.729,3939.7,3939.6,0.4715]
[1761018653334,4.26726433,3939.7,3939.6,0.4715]
[1761018653542,1.729,3939.7,3939.6,0.4715]
[1761018656225,2.12711865,3939.7,3939.6,0.4715]
[1761018657414,4.66538298,3939.7,3939.6,0.002]
[1761018657632,5.39026366,3939.7,3939.6,0.002]
[1761018657834,5.49156366,3939.7,3939.6,0.002]
[1761018659018,8.20552701,3939.7,3939.6,0.002]
[1761018659241,9.00714701,3939.7,3939.6,0.002]
[1761018659441,7.24667101,3939.7,3939.6,0.002]
[1761018659854,5.09344501,3939.7,3939.6,0.002]
[1761018660029,11.60009901,3939.7,3939.6,0.002]
[1761018660229,11.50551301,3939.7,3939.6,0.002]
[1761018660446,11.60681301,3939.7,3939.6,0.002]
[1761018661443,15.36221201,3939.7,3939.6,0.002]
[1761018662243,5.09344501,3939.7,3939.6,0.002]
[1761018662554,15.67428701,3939.7,3939.6,0.002]
[1761018662758,14.18164301,3939.7,3939.6,0.002]
[1761018662918,11.60681601,3939.7,3939.6,0.002]
[1761018663323,4.99214501,3939.7,3939.6,0.002]
[1761018664421,4.99214501,3939.7,3939.6,0.4633]
[1761018664422,8.19214501,3939.7,3939.6,0.4633]
[1761018664823,8.19214501,3939.7,3939.6,0.002]
[1761018665245,4.99214501,3939.7,3939.6,0.002]
[1761018665445,8.19214501,3939.7,3939.6,0.002]
[1761018667860,4.26726433,3939.7,3939.6,0.002]
[1761018668174,1.729,3939.7,3939.6,0.4633]
[1761018668388,1.729,3939.7,3938.6,0.1264]
[1761018668389,7.61595288,3939.1,3938.2,0.4633]
[1761018668592,7.61595288,3939.1,3935.9,0.2142]
[1761018668593,2.53988088,3937.2,3936.5,0.6755]
[1761018668882,1.03355425,3937.1,3936.5,0.6755]
[1761018669464,0.76400322,3937.0,3936.5,0.6755]
[1761018669766,5.76207623,3936.9,3936.6,0.4613]
[1761018669963,2.54014427,3936.8,3936.6,0.4613]
[1761018670132,0.76400322,3937.0,3936.6,0.4613]
[1761018670337,3.222,3936.9,3936.6,0.4613]
[1761018671178,0.76396042,3937.2,3936.6,0.4613]
[1761018671341,2.54002893,3937.0,3936.6,0.4613]
[1761018672246,2.54002893,3937.0,3936.7,0.4613]
[1761018672247,2.54005562,3937.0,3936.7,0.4613]
[1761018672536,5.76207875,3936.9,3936.7,0.4613]
[1761018673043,5.76207875,3936.9,3936.5,0.2142]
[1761018673238,2.54014039,3936.8,3936.5,0.6755]
[1761018673755,3.222,3936.9,3936.6,0.4613]
[1761018673949,5.76207258,3936.9,3936.6,0.4613]
[1761018674353,3.222,3936.9,3936.6,0.4613]
[1761018674571,2.58420197,3937.1,3936.6,0.4613]
[1761018674771,3.221,3936.9,3936.6,0.4613]
[1761018675160,2.54014121,3936.8,3936.5,0.2142]
[1761018675368,2.54020234,3936.7,3936.5,0.2142]
[1761018675736,2.54013432,3936.8,3936.3,0.4613]
[1761018675970,2.54013432,3936.8,3936.2,0.2142]
[1761018675971,2.54038675,3936.5,3936.2,0.2142]
[1761018676172,2.54041908,3936.4,3936.0,0.4613]
[1761018676379,2.54045406,3936.4,3936.0,0.4613]
[1761018676678,2.5403277,3936.5,3935.9,0.2142]
[1761018677257,3.221,3936.6,3935.9,0.6525]
[1761018677571,2.54034041,3936.5,3935.9,0.6525]
[1761018677772,5.76128024,3936.6,3936.0,0.4383]
[1761018677967,3.221,3936.6,3936.0,0.4383]
[1761018678273,2.5404471,3936.4,3936.0,0.4383]
[1761018678451,2.5404471,3936.4,3936.1,0.002]
[1761018678648,2.54050164,3936.3,3936.1,0.002]
[1761018678852,0.39844977,3936.7,3936.1,0.4403]
[1761018678853,2.54034353,3936.5,3936.1,0.4403]
[1761018679051,2.54034353,3936.5,3936.1,0.002]
[1761018679052,2.54052131,3936.2,3936.1,0.002]
[1761018680550,3.221,3936.3,3936.1,0.002]
[1761018680759,5.2372,3936.7,3936.1,0.4403]
[1761018680963,0.2142,3936.9,3936.1,0.4403]
[1761018680964,7.48828054,3936.6,3936.1,0.6691]
[1761018681182,1.728,3936.4,3936.1,0.6691]
[1761018681478,1.728,3936.4,3936.1,0.2308]
[1761018681669,1.728,3936.4,3936.2,0.4383]
[1761018682179,4.949,3936.3,3936.2,0.4383]
[1761018682344,1.728,3936.3,3936.2,0.4383]
[1761018682546,4.948,3936.3,3936.2,0.4383]
[1761018683948,1.77227479,3936.3,3936.2,0.4383]
[1761018684447,4.99227479,3936.3,3936.2,0.4383]
[1761018684648,4.99227479,3936.3,3936.1,0.002]
[1761018685742,7.5327678,3936.3,3936.1,0.002]
[1761018686147,4.99227479,3936.3,3936.1,0.002]
[1761018687444,1.728,3936.2,3936.1,0.002]
[1761018687657,4.36752131,3936.2,3936.1,0.002]
[1761018688249,4.26852131,3936.2,3936.1,0.002]
[1761018688545,18.48628631,3936.2,3936.1,0.002]
[1761018688767,14.63295631,3936.2,3936.1,0.002]
[1761018688968,16.79686604,3936.2,3936.1,0.002]
[1761018689182,17.30374604,3936.2,3936.1,0.002]
[1761018689601,23.94409404,3936.2,3936.1,0.002]
[1761018690171,16.80778604,3936.2,3936.1,0.002]
[1761018690498,12.44678004,3936.2,3936.1,0.002]
[1761018690701,12.53568804,3936.2,3936.1,0.002]
[1761018691679,22.86754446,3936.2,3936.1,0.002]
[1761018691867,21.51750746,3936.2,3936.1,0.002]
[1761018692315,4.77565951,3935.8,3935.7,0.002]
[1761018692465,25.73892046,3935.8,3935.7,0.002]
[1761018692778,26.22388446,3935.8,3935.7,0.002]
[1761018693108,25.75744023,3935.8,3935.7,0.002]
[1761018693470,26.15601066,3935.8,3935.7,0.002]
[1761018693670,27.44049966,3935.8,3935.7,0.002]
[1761018694710,26.14256666,3935.8,3935.7,0.002]
[1761018695569,25.16022866,3935.8,3935.7,0.002]
[1761018695775,22.41267266,3935.8,3935.7,0.002]
[1761018696672,39.19147866,3935.8,3935.7,0.002]
[1761018697368,39.19147866,3935.8,3935.3,0.002]
[1761018697369,17.60606275,3935.4,3935.3,0.002]
[1761018697589,8.77219011,3935.4,3935.3,0.002]
[1761018697793,19.11181111,3935.4,3935.3,0.002]
[1761018698000,19.34317281,3935.4,3935.3,0.002]
[1761018698714,21.15619181,3935.4,3935.3,0.002]
[1761018698887,19.29289381,3935.4,3935.3,0.002]
[1761018699282,14.26571281,3935.4,3935.3,0.002]
[1761018699806,13.42935281,3935.4,3935.3,0.002]
[1761018700604,11.85658581,3935.4,3935.3,0.002]
[1761018700838,10.91985581,3935.4,3935.3,0.002]
[1761018701142,7.93389945,3935.4,3935.3,0.4409]
[1761018701312,5.3928617,3935.4,3935.3,0.4409]
[1761018701511,5.3918617,3935.4,3935.3,0.4409]
[1761018702032,4.71189945,3935.4,3935.3,0.002]
[1761018702202,7.93289945,3935.4,3935.3,0.002]
[1761018703436,8.03269945,3935.4,3935.3,0.002]
[1761018703603,7.93289945,3935.4,3935.3,0.002]
[1761018704714,8.03269945,3935.4,3935.3,0.002]
[1761018704919,7.93289945,3935.4,3935.3,0.002]
[1761018706437,13.60250145,3935.4,3935.3,0.002]
[1761018706606,15.21684264,3935.4,3935.3,0.002]
[1761018707109,11.87580564,3935.4,3935.3,0.002]
[1761018707529,17.47796464,3935.4,3935.3,0.002]
[1761018707735,10.05412064,3935.4,3935.3,0.002]
[1761018707933,9.54724064,3935.4,3935.3,0.002]
[1761018709966,7.93289945,3935.4,3935.3,0.002]
[1761018712257,4.71189945,3935.4,3935.3,0.4409]
[1761018712576,7.93189945,3935.4,3935.3,0.002]
[1761018713142,7.93189945,3935.4,3935.3,0.4409]
[1761018713970,7.93189945,3935.4,3935.3,0.002]
[1761018714938,5.3908617,3935.4,3935.3,0.4409]
[1761018715961,2.1708617,3935.4,3935.3,0.4409]
[1761018716481,5.3898617,3935.4,3935.3,0.4409]
[1761018717263,19.24399162,3935.4,3935.3,0.002]
[1761018717472,19.34299162,3935.4,3935.3,0.002]
[1761018717684,13.28434762,3935.4,3935.3,0.002]
[1761018717855,5.3908617,3935.4,3935.3,0.002]
[1761018718055,5.3908617,3935.4,3935.3,0.4409]
[1761018718357,2.1708617,3935.4,3935.3,0.4409]
[1761018718664,5.3908617,3935.4,3935.3,0.4409]
[1761018720290,3.6628617,3935.4,3935.3,0.4409]
[1761018721806,0.4428617,3935.4,3935.3,0.4409]
[1761018722084,3.6618617,3935.4,3935.3,0.4409]
[1761018722292,6.20289945,3935.4,3935.3,0.002]
[1761018722874,3.6618617,3935.4,3935.3,0.002]
[1761018723374,6.20289945,3935.4,3935.3,0.002]
[1761018723573,3.6618617,3935.4,3935.3,0.002]
[1761018723981,3.6618617,3935.4,3935.3,0.4739]
[1761018724976,6.20289945,3935.4,3935.3,0.002]
[1761018725181,7.26779104,3935.4,3935.3,0.002]
[1761018725907,21.31617604,3935.4,3935.3,0.002]
[1761018726108,11.94000004,3935.4,3935.3,0.002]
[1761018726408,12.60465646,3935.4,3935.3,0.002]
[1761018726611,11.84100004,3935.4,3935.3,0.002]
[1761018726905,14.53866904,3935.4,3935.3,0.002]
[1761018727090,11.09950904,3935.4,3935.3,0.002]
[1761018727784,3.23575329,3935.4,3935.3,0.002]
[1761018727984,5.3978617,3935.4,3935.3,0.002]
[1761018728190,7.93889945,3935.4,3935.3,0.002]
[1761018728391,5.3978617,3935.4,3935.3,0.002]
[1761018729192,30.1947577,3935.4,3935.3,0.002]
[1761018729392,5.3417177,3935.4,3935.3,0.002]
[1761018729711,5.00328371,3935.4,3935.3,0.002]
[1761018729889,5.56095208,3935.4,3935.3,0.002]
[1761018730209,7.76977408,3935.4,3935.3,0.002]
[1761018730591,14.22697083,3935.4,3935.3,0.002]
[1761018730806,13.64659683,3935.4,3935.3,0.002]
[1761018730981,8.10198983,3935.4,3935.3,0.002]
[1761018731182,8.52923408,3935.4,3935.3,0.002]
[1761018731387,5.56095208,3935.4,3935.3,0.002]
[1761018731683,5.00328371,3935.4,3935.3,0.4739]
[1761018731879,1.77228371,3935.4,3935.3,0.4739]
[1761018732078,0.04428371,3935.4,3935.3,0.4739]
[1761018732279,1.96028371,3935.4,3935.3,0.4739]
[1761018732706,1.916,3935.4,3935.3,0.4239]
[1761018733109,3.234,3935.5,3935.3,0.4239]
[1761018733310,0.39953783,3935.6,3935.4,0.31962486]
[1761018733513,0.39953783,3935.6,3935.2,0.2312]
[1761018734715,0.39953783,3935.6,3935.3,0.4739]
[1761018735103,0.44381692,3935.6,3935.3,0.4739]
[1761018736523,0.44381692,3935.6,3935.3,0.002]
[1761018736709,2.32081692,3935.6,3935.3,0.002]
[1761018737022,19.323087,3935.4,3935.3,0.002]
[1761018737207,4.901339,3935.4,3935.3,0.002]
[1761018737515,3.681447,3935.4,3935.3,0.002]
[1761018737937,6.37148475,3935.4,3935.3,0.002]
[1761018738231,15.65709175,3935.4,3935.3,0.002]
[1761018738403,17.94462116,3935.4,3935.3,0.002]
[1761018738730,10.78106741,3935.4,3935.3,0.002]
[1761018738939,10.43501741,3935.4,3935.3,0.002]
[1761018739138,13.23311841,3935.4,3935.3,0.002]
[1761018739335,15.77415616,3935.4,3935.3,0.002]
[1761018739910,15.26765816,3935.4,3935.3,0.002]
[1761018740111,16.61176516,3935.4,3935.3,0.002]
[1761018740317,13.85944316,3935.4,3935.3,0.002]
[1761018741140,19.23773916,3935.4,3935.3,0.002]
[1761018741511,18.62266216,3935.4,3935.3,0.002]
[1761018741912,18.66694647,3935.4,3935.3,0.002]
[1761018742240,23.37240747,3935.4,3935.3,0.002]
[1761018742442,19.47615147,3935.4,3935.3,0.002]
[1761018742829,19.97666148,3935.4,3935.3,0.002]
[1761018743043,23.86707348,3935.4,3935.3,0.002]
[1761018743247,27.10307348,3935.4,3935.3,0.002]
[1761018744144,30.07626048,3935.4,3935.3,0.002]
[1761018744460,17.18467848,3935.4,3935.3,0.002]
[1761018744610,17.33367848,3935.4,3935.3,0.002]
[1761018745011,16.82679848,3935.4,3935.3,0.002]
[1761018745214,32.67994748,3935.4,3935.3,0.002]
[1761018745625,29.44394748,3935.4,3935.3,0.002]
[1761018745820,27.90250748,3935.4,3935.3,0.002]
[1761018746118,30.47664448,3935.4,3935.3,0.002]
[1761018747076,2.54129606,3935.0,3934.4,1.00598062]
[1761018747349,3.04882204,3934.0,3932.1,0.2365]
[1761018747550,3.04914515,3933.5,3932.1,0.2365]
[1761018747867,38.85244891,3933.5,3933.4,1.10627631]
[1761018748009,39.18134891,3933.5,3933.4,1.10627631]
[1761018748346,18.793778,3933.5,3933.4,1.10627631]
[1761018748511,4.969,3933.5,3933.4,1.10627631]
[1761018748709,1.728,3933.5,3933.4,1.10627631]
[1761018748955,4.972,3933.5,3933.4,1.10627631]
[1761018749255,8.929786,3933.5,3933.4,1.10627631]
[1761018749612,10.83152,3933.5,3933.4,1.10627631]
[1761018750335,7.73751272,3933.5,3933.4,1.10627631]
[1761018750534,10.69832011,3933.5,3933.4,1.10627631]
[1761018750848,5.11968111,3933.5,3933.4,1.10627631]
[1761018751018,8.36368111,3933.5,3933.4,1.10627631]
[1761018751215,9.17794626,3933.5,3933.4,1.10627631]
[1761018751534,13.75800945,3933.5,3933.4,1.10627631]
[1761018751722,9.90212345,3933.5,3933.4,1.10627631]
[1761018751927,2.1710923,3933.5,3933.4,1.10627631]
[1761018752115,3.6880923,3933.5,3933.4,1.55507631]
[1761018753025,3.6880923,3933.5,3933.4,1.10827631]
[1761018753228,0.4430923,3933.5,3933.4,1.10827631]
[1761018753439,0.4430923,3933.5,3933.4,1.55707631]
[1761018753642,0.4430923,3933.5,3933.4,1.10827631]
[1761018753866,11.7340933,3933.5,3933.4,1.10827631]
[1761018754151,0.4430923,3933.5,3933.4,1.10827631]
[1761018754546,0.4430923,3933.5,3933.4,1.55707631]
[1761018755419,0.4430923,3933.5,3933.4,1.10827631]
[1761018756930,0.98470153,3933.5,3933.4,1.10827631]
[1761018757131,8.81966468,3933.5,3933.4,1.10827631]
[1761018757532,8.92126468,3933.5,3933.4,1.10827631]
[1761018757822,9.68606061,3933.5,3933.4,1.10827631]
[1761018758222,29.37016661,3933.5,3933.4,1.10827631]
[1761018758431,28.97139342,3933.5,3933.4,1.10827631]
[1761018758631,23.93232862,3933.5,3933.4,1.10827631]
[1761018758866,22.85556462,3933.5,3933.4,1.10827631]
[1761018759031,21.64842731,3933.5,3933.4,1.10827631]
[1761018759231,27.16718131,3933.5,3933.4,1.10827631]
[1761018759441,19.90152431,3933.5,3933.4,1.10827631]
[1761018759757,20.00312431,3933.5,3933.4,1.10827631]
[1761018760201,28.34341231,3933.5,3933.4,1.10827631]
[1761018760558,28.34341231,3933.5,3932.9,1.14238981]
[1761018760785,29.18830735,3933.0,3932.9,1.14238981]
[1761018760999,33.14661111,3933.0,3932.9,1.14238981]
[1761018761199,38.83737211,3933.0,3932.9,1.14238981]
[1761018761406,39.23621218,3933.0,3932.9,1.14238981]
[1761018761961,38.88491537,3933.0,3932.9,1.14238981]
[1761018762269,35.04737446,3933.0,3932.9,1.14238981]
[1761018762468,35.04737446,3933.0,3932.9,1.12911819]
[1761018762859,29.94861946,3933.0,3932.9,1.12911819]
[1761018763083,29.44173946,3933.0,3932.9,1.12911819]
[1761018763301,8.31748846,3933.0,3932.9,1.12911819]
[1761018763606,20.34162446,3933.0,3932.9,1.12911819]
[1761018763961,0.4431705,3933.0,3932.9,1.12911819]
[1761018764175,6.9979865,3933.0,3932.9,1.12911819]
[1761018764471,15.4128615,3933.0,3932.9,1.12911819]
[1761018764667,9.5947235,3933.0,3932.9,1.12911819]
[1761018764869,6.3447235,3933.0,3932.9,1.12911819]
[1761018765190,8.2599035,3933.0,3932.9,1.57791819]
[1761018765397,8.5274275,3933.0,3932.9,1.12911819]
[1761018765862,7.4851005,3933.0,3932.9,1.12911819]
[1761018766256,5.4241705,3933.0,3932.9,1.12911819]
[1761018766474,10.7165395,3933.0,3932.9,1.12911819]
[1761018766874,14.58502945,3933.0,3932.9,1.12911819]
[1761018767375,30.73103802,3933.0,3932.9,1.12911819]
[1761018767570,27.60472841,3933.0,3932.9,1.12911819]
[1761018767996,27.56040502,3933.0,3932.9,1.12911819]
[1761018768374,36.07653902,3933.0,3932.9,1.12911819]
[1761018768569,33.44152802,3933.0,3932.9,1.12911819]
[1761018769197,28.88288002,3933.0,3932.9,1.12911819]
[1761018769407,28.05481102,3933.0,3932.9,1.12911819]
[1761018769573,27.60926002,3933.0,3932.9,1.12911819]
[1761018769902,27.71086002,3933.0,3932.9,1.12911819]
[1761018770475,39.39425665,3933.0,3932.9,1.00971819]
[1761018771066,38.69703265,3933.0,3932.9,1.00971819]
[1761018771269,27.73297565,3933.0,3932.9,1.00971819]
[1761018771469,32.75933165,3933.0,3932.9,1.00971819]
[1761018771672,19.61954965,3933.0,3932.9,1.00971819]
[1761018771897,20.3845367,3933.0,3932.9,1.00971819]
[1761018772492,22.1836247,3933.0,3932.9,1.00971819]
[1761018772717,19.64103635,3933.0,3932.9,1.00971819]
[1761018773004,10.09599235,3933.0,3932.9,1.01171819]
[1761018773203,10.09599235,3933.0,3932.9,1.46051819]
[1761018773204,8.9795297,3933.0,3932.9,1.46051819]
[1761018773411,5.4271667,3933.0,3932.9,1.46051819]
[1761018773574,7.73686263,3933.0,3932.9,1.46051819]
[1761018773770,4.48086263,3933.0,3932.9,1.46051819]
[1761018774001,4.48086263,3933.0,3932.9,1.01171819]
[1761018774201,5.02832663,3933.0,3932.9,1.46051819]
[1761018774477,9.53385263,3933.0,3932.9,1.46051819]
[1761018774791,5.02832663,3933.0,3932.9,1.46051819]
[1761018775093,8.40317463,3933.0,3932.9,1.46051819]
[1761018775718,1.77232663,3933.0,3932.9,1.46051819]
[1761018776021,8.10722963,3933.0,3932.9,1.46051819]
[1761018776511,8.5060145,3933.0,3932.9,1.01171819]
[1761018776720,8.5060145,3933.0,3932.9,1.46051819]
[1761018777011,8.5060145,3933.0,3932.9,1.01171819]
[1761018777220,8.46168787,3933.0,3932.9,1.46051819]
[1761018777575,5.38278487,3933.0,3932.9,1.46051819]
[1761018778041,5.38178487,3933.0,3932.9,1.46051819]
[1761018778671,3.65378487,3933.0,3932.9,1.80532387]
[1761018778921,0.39878487,3933.0,3932.9,4.3734034]
[1761018779151,3.255,3933.3,3932.9,1.80532387]
[1761018779363,3.255,3933.3,3933.2,0.2148]
[1761018779965,8.031031,3933.3,3933.2,0.6636]
[1761018780167,8.031031,3933.3,3933.2,0.2148]
[1761018780337,8.031031,3933.3,3933.2,0.6636]
[1761018780716,8.031031,3933.3,3933.2,0.2148]
[1761018780916,8.256171,3933.3,3933.2,0.2148]
[1761018781159,8.30048556,3933.3,3933.2,0.2148]
[1761018781443,4.733954,3933.1,3932.9,1.01171819]
[1761018781646,4.733954,3933.1,3933.0,0.4307]
[1761018781858,7.987954,3933.1,3933.0,0.4307]
[1761018782147,4.733954,3933.1,3933.0,0.4307]
[1761018782444,5.1770208,3933.1,3933.0,0.4307]
[1761018782645,0.4430668,3933.1,3933.0,0.4307]
[1761018782844,0.4430668,3933.1,3932.9,1.01171819]
[1761018783440,0.4430668,3933.1,3932.9,1.44241819]
[1761018783648,0.4430668,3933.1,3932.9,1.01171819]
[1761018784454,6.9044988,3933.1,3933.0,0.4307]
[1761018784661,10.1584988,3933.1,3933.0,0.4307]
[1761018785368,3.6970668,3933.1,3932.9,1.01171819]
[1761018785542,1.728,3933.0,3932.9,1.44241819]
[1761018785718,1.728,3933.0,3932.9,1.01171819]
[1761018786222,1.728,3933.0,3932.9,1.44241819]
[1761018786847,1.728,3933.0,3932.9,1.01171819]
[1761018787042,1.728,3933.0,3932.9,1.44241819]
[1761018788149,2.27050668,3933.0,3932.9,1.01171819]
[1761018788350,4.56516368,3933.0,3932.9,1.01171819]
[1761018788551,0.54250668,3933.0,3932.9,1.01171819]
[1761018788847,5.761604,3933.0,3932.9,1.44241819]
[1761018789152,4.983,3933.0,3932.9,1.44241819]
[1761018790026,4.983,3933.0,3932.9,1.01171819]
[1761018791156,18.282457,3933.0,3932.9,1.01171819]
[1761018791360,20.86936731,3933.0,3932.9,1.01171819]
[1761018792052,38.43656615,3933.0,3932.9,1.01171819]
[1761018792424,38.43756615,3933.0,3932.9,1.01171819]
[1761018792753,38.13997215,3933.0,3932.9,1.01171819]
[1761018792952,25.51759415,3933.0,3932.9,1.01171819]
[1761018793154,27.60143015,3933.0,3932.9,1.01171819]
[1761018793336,19.43460331,3933.0,3932.9,1.01171819]
[1761018793854,17.10104731,3933.0,3932.9,1.01171819]
[1761018794268,18.03207531,3933.0,3932.9,1.01171819]
[1761018794770,18.13377531,3933.0,3932.9,1.01171819]
[1761018795169,28.56016031,3933.0,3932.9,1.01171819]
[1761018795370,27.61608703,3933.0,3932.9,1.01171819]
[1761018795771,18.08758003,3933.0,3932.9,1.01171819]
[1761018795973,17.98588003,3933.0,3932.9,1.01171819]
[1761018796270,27.32376703,3933.0,3932.9,1.01171819]
[1761018797270,19.33802703,3933.0,3932.9,1.01171819]
[1761018798073,16.32807303,3933.0,3932.9,1.01171819]
[1761018798256,18.21512922,3933.0,3932.9,1.01171819]
[1761018798570,16.86578422,3933.0,3932.9,1.01171819]
[1761018798765,9.18502487,3933.0,3932.9,1.01171819]
[1761018798986,11.82594803,3933.0,3932.9,0.61294649]
[1761018799270,38.18049031,3933.0,3932.9,0.61294649]
[1761018799441,35.29575431,3933.0,3932.9,0.61294649]
[1761018800272,38.13616835,3933.0,3932.9,0.61294649]
[1761018800758,38.13616835,3933.0,3932.9,0.52552904]
[1761018802255,38.87315807,3933.0,3932.9,1e-08]
[1761018802461,38.92315807,3933.0,3932.9,1e-08]
[1761018802656,38.96749073,3933.0,3932.9,1e-08]
[1761018803873,38.57932206,3933.0,3932.9,1e-08]
[1761018804289,16.00565906,3933.0,3932.9,1e-08]
[1761018804478,10.59448771,3933.0,3932.9,1e-08]
[1761018804682,16.40107606,3933.0,3932.9,1e-08]
[1761018805000,18.23077606,3933.0,3932.9,1e-08]
[1761018805156,18.73765606,3933.0,3932.9,1e-08]
[1761018805355,38.58732206,3933.0,3932.9,1e-08]
[1761018807587,38.5429894,3933.0,3932.9,1e-08]
[1761018808469,38.58731897,3933.0,3932.9,1e-08]
[1761018808988,38.52666659,3933.0,3932.9,1e-08]
[1761018810994,38.52666659,3933.0,3932.4,1e-08]
[1761018811325,38.52666659,3933.0,3927.7,0.2259]
[1761018811326,4.27246451,3930.1,3927.7,0.2259]
[1761018811471,4.27919,3929.0,3928.9,1.91351043]
[1761018811669,7.58419,3929.0,3928.9,1.91351043]
[1761018811872,5.033,3929.0,3928.9,2.36211043]
[1761018812106,3.306,3929.0,3928.9,2.7420026]
[1761018812308,0.04435976,3929.0,3928.9,2.36211043]
[1761018812474,0.04435976,3929.0,3928.9,2.31211043]
[1761018812674,2.99696875,3929.1,3928.9,2.31211043]
[1761018813030,0.39916963,3930.8,3928.9,2.31211043]
[1761018813031,10.840796,3930.7,3929.0,0.4486]
[1761018813176,2.54421125,3930.5,3929.1,0.23121104]
[1761018813519,0.39908723,3929.9,3929.2,0.6745]
[1761018813716,3.70908723,3929.9,3929.2,0.6745]
[1761018813883,3.70908723,3929.9,3929.3,0.4486]
[1761018814075,0.39908723,3929.9,3929.4,2.54490611]
[1761018814273,0.13278198,3931.0,3929.5,0.32194061]
[1761018814582,0.13278198,3931.0,3930.9,0.2259]
[1761018814767,0.13278198,3931.0,3930.9,0.6745]
[1761018814972,0.53174861,3931.0,3930.9,0.6745]
[1761018815505,0.53174861,3931.0,3930.9,0.2259]
[1761018815708,0.53174861,3931.0,3930.5,0.2259]